bitfinex/quotes_BTCUSD_20241202
["timestamp","ask_amount","ask_price","bid_price","bid_amount"]
[1733173450928,0.4211627,95533.0,95532.0,0.00100052]
[1733173451183,0.41884657,95533.0,95532.0,0.00100052]
[1733173451873,0.42869353,95533.0,95532.0,0.00100052]
[1733173452091,0.0197294,95533.0,95532.0,0.00100052]
[1733173453601,0.0197294,95533.0,95532.0,0.10384573]
[1733173453812,0.0197294,95533.0,95532.0,0.11449686]
[1733173454029,0.0197294,95533.0,95532.0,0.11543035]
[1733173454243,0.0197294,95533.0,95532.0,0.11449686]
[1733173454931,0.0197294,95533.0,95532.0,0.11584651]
[1733173455152,0.19958386,95568.0,95532.0,0.11584651]
[1733173455153,0.19953331,95569.0,95550.0,0.209314]
[1733173455420,0.19958386,95572.0,95550.0,0.42015921]
[1733173455619,0.209273,95569.0,95550.0,0.21084521]
[1733173455837,0.209291,95561.0,95550.0,0.21084521]
[1733173456053,0.01055248,95557.0,95550.0,0.21084521]
[1733173457558,0.00517635,95551.0,95550.0,0.21184521]
[1733173457762,0.01017635,95551.0,95550.0,0.21184521]
[1733173457999,0.01017635,95551.0,95550.0,0.31467667]
[1733173459569,0.01010871,95551.0,95550.0,0.31467667]
[1733173462626,0.01010871,95551.0,95550.0,0.31554127]
[1733173462835,0.01183791,95551.0,95550.0,0.31554127]
[1733173467304,0.01183791,95551.0,95550.0,0.21270981]
[1733173467516,0.01183791,95551.0,95550.0,0.15870981]
[1733173469922,0.011685,95551.0,95550.0,0.15870981]
[1733173472300,0.011685,95551.0,95550.0,0.15964261]
[1733173472956,0.011685,95551.0,95550.0,0.15870981]
[1733173473170,0.011685,95551.0,95550.0,0.26154127]
[1733173477175,0.011685,95551.0,95550.0,0.2624241]
[1733173477390,0.15030177,95581.0,95566.0,0.209279]
[1733173477608,0.00017668,95580.0,95568.0,0.054]
[1733173477846,0.00017668,95580.0,95569.0,0.37515143]
[1733173478098,0.00017668,95580.0,95569.0,0.16587943]
[1733173478622,0.20942568,95580.0,95569.0,0.16587943]
[1733173478899,0.00017668,95580.0,95569.0,0.16587943]
[1733173480381,0.20925,95579.0,95569.0,0.17487943]
[1733173480620,0.00349156,95580.0,95570.0,0.02828794]
[1733173480862,0.209253,95578.0,95571.0,0.10284521]
[1733173481152,0.00117668,95580.0,95571.0,0.10284521]
[1733173481725,0.20942568,95580.0,95571.0,0.10284521]
[1733173482703,0.00017668,95580.0,95571.0,0.10284521]
[1733173482932,0.00017668,95580.0,95572.0,0.04644042]
[1733173483178,0.00017668,95580.0,95573.0,0.10284521]
[1733173484187,0.00117668,95580.0,95573.0,0.10284521]
[1733173484432,0.00017668,95580.0,95573.0,0.10284521]
[1733173484665,0.001,95580.0,95573.0,0.11184521]
[1733173484899,0.001,95580.0,95574.0,0.02945736]
[1733173485127,0.001,95580.0,95575.0,0.10284521]
[1733173486145,0.002729,95580.0,95575.0,0.10284521]
[1733173486419,0.211979,95580.0,95575.0,0.10284521]
[1733173486670,0.211979,95580.0,95573.0,0.009]
[1733173486671,0.39911717,95574.0,95573.0,0.009]
[1733173486907,0.60837817,95574.0,95573.0,0.009]
[1733173487177,0.61881452,95574.0,95573.0,0.009]
[1733173487430,0.61881452,95574.0,95573.0,1e-06]
[1733173489073,0.61881496,95574.0,95573.0,0.001001]
[1733173489544,0.61894926,95574.0,95573.0,1e-06]
[1733173490412,0.61894926,95574.0,95573.0,0.009]
[1733173491919,0.61994926,95574.0,95573.0,0.018]
[1733173493275,0.61994926,95574.0,95573.0,0.01293058]
[1733173496768,0.61525836,95574.0,95573.0,0.01293058]
[1733173497000,0.41572505,95574.0,95573.0,0.01293058]
[1733173497214,0.21614119,95574.0,95573.0,0.01379488]
[1733173497441,0.21286911,95574.0,95573.0,0.01379488]
[1733173497657,0.21614091,95574.0,95573.0,0.01379488]
[1733173497869,0.41798931,95574.0,95573.0,0.01379488]
[1733173498084,0.41567422,95574.0,95573.0,0.01379488]
[1733173498300,0.41240242,95574.0,95573.0,0.01379488]
[1733173498987,0.56240242,95574.0,95573.0,0.01379488]
[1733173500749,0.86962577,95574.0,95573.0,0.01379488]
[1733173501759,0.76198628,95574.0,95573.0,0.01379488]
[1733173502733,0.56240242,95574.0,95573.0,0.01379488]
[1733173503003,0.55979431,95574.0,95573.0,0.01379488]
[1733173503946,0.360261,95574.0,95573.0,0.01379488]
[1733173504161,0.55979431,95574.0,95573.0,0.01379488]
[1733173505595,0.360261,95574.0,95573.0,0.01379488]
[1733173506063,0.55979431,95574.0,95573.0,0.01379488]
[1733173506516,0.56461555,95574.0,95573.0,0.01379488]
[1733173507211,0.86703087,95574.0,95573.0,0.01379488]
[1733173507400,0.86965106,95574.0,95573.0,0.01379488]
[1733173508796,0.87137966,95574.0,95573.0,0.01379488]
[1733173509489,0.7685482,95574.0,95573.0,0.01379488]
[1733173509710,0.76372696,95574.0,95573.0,0.01379488]
[1733173510155,0.5641431,95574.0,95573.0,0.01379488]
[1733173510592,0.36460979,95574.0,95573.0,0.01379488]
[1733173511042,0.0027286,95574.0,95573.0,0.01379488]
[1733173511301,0.0027286,95574.0,95573.0,0.11664009]
[1733173511559,0.0027286,95574.0,95573.0,0.12832094]
[1733173511777,0.0027286,95574.0,95573.0,0.12439036]
[1733173512215,0.0077286,95574.0,95573.0,0.12539036]
[1733173512478,0.21661648,95574.0,95573.0,0.11370951]
[1733173512744,0.00235548,95574.0,95573.0,0.11270951]
[1733173513016,0.00735548,95574.0,95573.0,0.11270951]
[1733173513266,0.0067286,95574.0,95573.0,0.10370951]
[1733173513522,0.0087286,95574.0,95573.0,0.10470951]
[1733173513754,0.0067286,95574.0,95573.0,0.1140973]
[1733173513996,0.0087286,95574.0,95573.0,0.1150973]
[1733173532155,0.0087286,95574.0,95573.0,0.12004809]
[1733173532871,0.0087286,95574.0,95573.0,0.12139584]
[1733173534025,0.0087286,95574.0,95573.0,0.12186253]
[1733173534275,0.0017286,95574.0,95573.0,0.12086253]
[1733173534711,0.00280682,95574.0,95573.0,0.12086253]
[1733173534954,0.00480682,95574.0,95573.0,0.12086253]
[1733173535172,0.00480682,95574.0,95573.0,0.12486253]
[1733173536937,0.00080682,95574.0,95573.0,0.12486253]
[1733173537625,0.00080682,95574.0,95573.0,0.3074551]
[1733173537846,0.00080682,95574.0,95573.0,0.30652349]
[1733173543924,0.00080682,95574.0,95573.0,5.35652349]
[1733173545506,0.00080682,95574.0,95573.0,5.35816894]
[1733173553037,0.0017324,95611.0,95573.0,5.35816894]
[1733173553038,0.0017324,95611.0,95609.0,0.20959914]
[1733173553277,0.00190904,95611.0,95610.0,0.88565719]
[1733173553517,0.00190904,95611.0,95610.0,0.89037169]
[1733173553765,0.00190904,95611.0,95610.0,4.42037169]
[1733173554641,0.00390904,95611.0,95610.0,1.04037169]
[1733173554856,0.00190904,95611.0,95610.0,5.25320315]
[1733173555105,0.00190904,95611.0,95610.0,5.23020315]
[1733173555321,0.00190904,95611.0,95610.0,5.23620315]
[1733173555540,0.00190904,95611.0,95610.0,5.23020315]
[1733173555753,0.00190904,95611.0,95610.0,4.63820315]
[1733173557317,0.00190904,95611.0,95610.0,2.37020315]
[1733173558178,0.00190904,95611.0,95610.0,2.36720315]
[1733173558409,0.00190904,95611.0,95610.0,2.37120315]
[1733173558664,0.00190904,95611.0,95610.0,2.36720315]
[1733173558870,0.00290904,95611.0,95610.0,2.36720315]
[1733173559061,0.00290904,95611.0,95610.0,2.37020315]
[1733173560388,0.00190904,95611.0,95610.0,2.37020315]
[1733173560605,0.00190904,95611.0,95610.0,2.36720315]
[1733173560822,0.00190904,95611.0,95610.0,2.37220315]
[1733173561042,0.00190904,95611.0,95610.0,2.36720315]
[1733173561516,0.00190904,95611.0,95610.0,2.37220315]
[1733173561962,0.00116039,95647.0,95627.0,0.00046669]
[1733173562193,0.00102346,95647.0,95628.0,0.10377362]
[1733173562412,0.00102346,95647.0,95628.0,0.31847868]
[1733173562626,0.00102346,95647.0,95628.0,0.31801696]
[1733173562873,0.00102346,95647.0,95628.0,0.3184331]
[1733173563091,0.00102346,95647.0,95628.0,0.32882089]
[1733173563299,0.19628597,95660.0,95632.0,0.00041614]
[1733173563512,0.19628597,95661.0,95636.0,0.10284521]
[1733173563732,0.19628597,95661.0,95646.0,0.209102]
[1733173563949,0.19628597,95661.0,95647.0,0.10284521]
[1733173564160,0.19628597,95661.0,95648.0,0.03119472]
[1733173564380,0.19628597,95661.0,95649.0,0.10284521]
[1733173564591,0.00077974,95663.0,95650.0,0.00092814]
[1733173564805,0.209058,95667.0,95651.0,0.10284521]
[1733173565020,0.00058905,95663.0,95651.0,0.10284521]
[1733173565236,0.20965705,95663.0,95658.0,0.01]
[1733173565506,0.209073,95660.0,95658.0,0.11284521]
[1733173565720,0.20965705,95663.0,95658.0,0.11284521]
[1733173565964,0.003,95661.0,95658.0,0.11284521]
[1733173566183,0.00231288,95663.0,95658.0,0.11284521]
[1733173566398,0.209056,95669.0,95659.0,0.01128452]
[1733173566627,0.209065,95664.0,95659.0,0.01128452]
[1733173566856,0.005,95660.0,95659.0,0.01128452]
[1733173567316,0.40535197,95664.0,95659.0,0.01684658]
[1733173567540,0.19958386,95661.0,95659.0,0.01128452]
[1733173567762,0.209069,95662.0,95660.0,0.01241297]
[1733173567985,0.005,95663.0,95660.0,0.01241297]
[1733173569360,0.0017286,95664.0,95660.0,0.01241297]
[1733173570041,0.0017286,95664.0,95660.0,0.01341297]
[1733173570042,0.209067,95663.0,95660.0,0.01341297]
[1733173570258,0.19958386,95661.0,95660.0,0.01341297]
[1733173570480,0.19958386,95661.0,95660.0,0.001]
[1733173570910,0.0017286,95664.0,95658.0,0.11284521]
[1733173571127,0.0017286,95664.0,95660.0,0.10384521]
[1733173571350,0.0017286,95664.0,95662.0,0.209069]
[1733173571573,0.0017286,95664.0,95663.0,0.20567667]
[1733173571797,0.0017286,95664.0,95663.0,0.20660398]
[1733173572017,0.0017286,95664.0,95663.0,0.21302528]
[1733173573372,0.0037286,95664.0,95663.0,0.21302528]
[1733173573824,0.0017286,95664.0,95663.0,0.21302528]
[1733173574040,0.0037286,95664.0,95663.0,0.21302528]
[1733173574491,0.0037286,95664.0,95663.0,0.21209797]
[1733173580946,0.0037286,95664.0,95663.0,0.19863297]
[1733173583230,0.0037286,95664.0,95663.0,0.0064213]
[1733173583440,0.209075,95659.0,95658.0,0.01]
[1733173583878,0.21138798,95659.0,95658.0,0.01587423]
[1733173584339,0.21138798,95659.0,95658.0,0.01]
[1733173584780,0.21138798,95659.0,95658.0,0.011]
[1733173585471,0.21338798,95659.0,95658.0,0.011]
[1733173585932,0.21138798,95659.0,95658.0,0.011]
[1733173586399,0.21638798,95659.0,95658.0,0.012]
[1733173587126,0.61225781,95659.0,95658.0,0.011]
[1733173587327,0.61394483,95659.0,95658.0,0.012]
[1733173588691,0.61394483,95659.0,95658.0,0.02617188]
[1733173589344,0.61394483,95659.0,95658.0,0.012]
[1733173589989,0.60894483,95659.0,95658.0,0.011]
[1733173590204,0.60494483,95659.0,95658.0,0.01]
[1733173590641,0.60694483,95659.0,95658.0,0.011]
[1733173591077,0.60694483,95659.0,95658.0,0.0118646]
[1733173591293,0.61194483,95659.0,95658.0,0.0128646]
[1733173591524,0.61194483,95659.0,95658.0,0.15129536]
[1733173591525,0.007,95659.0,95658.0,0.15129536]
[1733173591989,0.007,95659.0,95658.0,0.12161475]
[1733173592870,0.216075,95659.0,95658.0,0.12161475]
[1733173594200,0.41565886,95659.0,95658.0,0.12161475]
[1733173594653,0.61295592,95659.0,95658.0,2.2e-07]
[1733173594933,0.61295592,95659.0,95602.0,0.2092]
[1733173594934,0.209163,95620.0,95602.0,0.2092]
[1733173595161,0.209078,95658.0,95596.0,0.209212]
[1733173595162,0.209173,95615.0,95612.0,0.10284521]
[1733173595385,0.418346,95615.0,95612.0,0.19126624]
[1733173595600,0.19628597,95624.0,95613.0,0.00799873]
[1733173595601,0.209165,95618.0,95613.0,0.00799873]
[1733173595819,0.209165,95618.0,95614.0,0.10284521]
[1733173596505,0.209165,95618.0,95615.0,0.00799873]
[1733173596720,0.209165,95618.0,95616.0,0.10284521]
[1733173597391,0.209165,95618.0,95614.0,0.00058905]
[1733173597392,0.209172,95615.0,95614.0,0.00158905]
[1733173597581,0.21148604,95615.0,95614.0,0.00058905]
[1733173597823,0.21548604,95615.0,95614.0,0.00058905]
[1733173598270,0.21148604,95615.0,95614.0,0.00858778]
[1733173598513,0.39586983,95616.0,95614.0,0.00058905]
[1733173598727,0.005,95618.0,95615.0,0.18104063]
[1733173598916,0.19628597,95621.0,95615.0,0.18104063]
[1733173599168,0.19628597,95621.0,95615.0,0.10284521]
[1733173599392,0.19859987,95622.0,95615.0,0.10284521]
[1733173599602,0.19628597,95622.0,95615.0,0.10284521]
[1733173599817,0.40544497,95621.0,95616.0,0.00799873]
[1733173600041,0.19628597,95622.0,95616.0,0.00799873]
[1733173600287,0.19958386,95623.0,95616.0,0.10284521]
[1733173600724,0.19628597,95622.0,95616.0,0.10284521]
[1733173600937,0.007,95621.0,95616.0,0.10284521]
[1733173601436,0.3117744,95722.0,95617.0,0.11337515]
[1733173601437,0.19958386,95628.0,95617.0,0.11337515]
[1733173601660,0.009,95622.0,95617.0,0.11337515]
[1733173601883,0.009,95622.0,95618.0,0.209165]
[1733173602095,0.009,95622.0,95619.0,0.10284521]
[1733173602326,0.009,95622.0,95621.0,0.10284521]
[1733173602579,0.20905,95671.0,95635.0,0.209128]
[1733173602580,0.19958386,95647.0,95635.0,0.209128]
[1733173602808,0.19958386,95647.0,95636.0,0.10284521]
[1733173603237,0.209104,95646.0,95637.0,0.00799873]
[1733173603457,0.209106,95645.0,95638.0,0.1919796]
[1733173603690,0.209117,95640.0,95638.0,0.1919796]
[1733173604153,0.209106,95645.0,95639.0,0.00799873]
[1733173604375,0.418213,95645.0,95640.0,0.10284521]
[1733173605028,0.418213,95645.0,95641.0,0.00805061]
[1733173605029,0.19628597,95642.0,95641.0,0.00805061]
[1733173605459,0.19628597,95642.0,95638.0,0.009]
[1733173605460,0.41823,95641.0,95638.0,0.009]
[1733173605680,0.00231348,95640.0,95633.0,0.7805]
[1733173605897,0.21143048,95640.0,95639.0,0.00805061]
[1733173606321,0.20913,95634.0,95633.0,0.88334521]
[1733173608123,0.21813,95634.0,95633.0,0.88434521]
[1733173608550,0.21813,95634.0,95633.0,0.10384521]
[1733173608761,0.22713,95634.0,95633.0,0.10484521]
[1733173609632,0.22713,95634.0,95633.0,0.002]
[1733173609633,0.42341597,95634.0,95633.0,0.002]
[1733173610757,0.72583129,95634.0,95633.0,0.002]
[1733173610981,0.77299983,95634.0,95633.0,0.002]
[1733173613207,0.77544515,95634.0,95633.0,0.002]
[1733173614329,0.77871495,95634.0,95633.0,0.002]
[1733173614969,0.59586983,95633.0,95632.0,3.8e-07]
[1733173615184,1.00928509,95633.0,95632.0,3.8e-07]
[1733173615833,1.01451728,95633.0,95632.0,3.8e-07]
[1733173616670,1.16551728,95633.0,95632.0,3.8e-07]
[1733173617101,0.96551728,95633.0,95632.0,3.8e-07]
[1733173617742,0.55537182,95633.0,95632.0,3.8e-07]
[1733173617993,0.40545097,95618.0,95617.0,0.0008646]
[1733173618211,0.40874886,95618.0,95617.0,0.0008646]
[1733173618651,0.001,95633.0,95617.0,0.10370981]
[1733173618652,0.19958386,95623.0,95617.0,0.10370981]
[1733173618863,0.19958386,95623.0,95618.0,0.10284521]
[1733173618864,0.209156,95622.0,95618.0,0.10284521]
[1733173619085,0.209159,95621.0,95619.0,0.01042989]
[1733173619301,0.209159,95621.0,95620.0,0.10284521]
[1733173619533,0.209159,95621.0,95620.0,0.10983279]
[1733173619753,0.209159,95621.0,95620.0,0.00698758]
[1733173619968,0.60502883,95621.0,95620.0,0.00698758]
[1733173620178,0.60502883,95621.0,95617.0,0.0018646]
[1733173620179,0.40874486,95620.0,95617.0,0.0018646]
[1733173620637,0.39586983,95618.0,95617.0,0.0018646]
[1733173620854,0.54586983,95618.0,95617.0,0.0018646]
[1733173621070,0.54586983,95618.0,95617.0,0.0008646]
[1733173621313,0.5495196,95618.0,95617.0,0.0008646]
[1733173622181,0.5585196,95618.0,95617.0,0.0008646]
[1733173622392,0.65835106,95618.0,95617.0,0.0008646]
[1733173622600,0.66735106,95618.0,95617.0,0.0008646]
[1733173623038,0.65835106,95618.0,95617.0,0.0008646]
[1733173623887,0.65793411,95618.0,95617.0,0.0008646]
[1733173624118,0.65193411,95618.0,95617.0,0.0008646]
[1733173624343,0.65293411,95618.0,95617.0,0.0088646]
[1733173624560,0.65193411,95618.0,95617.0,0.0008646]
[1733173624767,0.65393411,95618.0,95617.0,0.0138646]
[1733173624974,0.65393411,95618.0,95617.0,0.01154585]
[1733173625192,0.65293411,95618.0,95617.0,0.00354585]
[1733173625431,0.65293411,95618.0,95611.0,0.0008651]
[1733173625432,0.34916691,95615.0,95611.0,0.0008651]
[1733173625649,0.38138517,95615.0,95611.0,0.0008651]
[1733173625902,0.38503494,95615.0,95611.0,0.0008651]
[1733173626106,0.54910265,95615.0,95611.0,0.0008651]
[1733173626322,0.54545288,95615.0,95611.0,0.0008651]
[1733173627481,0.56345288,95615.0,95611.0,0.0008651]
[1733173627698,0.018,95615.0,95611.0,0.0008651]
[1733173628790,0.21716691,95615.0,95611.0,0.0008651]
[1733173629001,0.018,95615.0,95611.0,0.0008651]
[1733173629431,0.018,95615.0,95614.0,0.10343426]
[1733173629870,0.018,95615.0,95614.0,0.11046133]
[1733173630776,0.009,95615.0,95614.0,0.11046133]
[1733173631041,0.209148,95626.0,95614.0,0.11046133]
[1733173631231,0.209148,95626.0,95615.0,0.10284521]
[1733173631445,0.209148,95626.0,95616.0,0.03215044]
[1733173631667,0.203148,95626.0,95617.0,0.10284521]
[1733173631937,0.19916691,95628.0,95617.0,0.10983026]
[1733173632178,0.19628597,95631.0,95618.0,0.209165]
[1733173632413,0.00231369,95630.0,95619.0,0.10284521]
[1733173632657,0.009,95626.0,95620.0,0.05619028]
[1733173632927,0.4106216,95630.0,95621.0,0.10284521]
[1733173633199,0.19916691,95628.0,95621.0,0.10983026]
[1733173633435,0.209154,95623.0,95621.0,0.10983026]
[1733173633678,0.209156,95623.0,95621.0,0.10983026]
[1733173634158,0.209156,95623.0,95621.0,0.10284521]
[1733173634398,0.209156,95623.0,95621.0,0.10384521]
[1733173634641,0.19859973,95622.0,95621.0,0.002]
[1733173634899,0.19859973,95622.0,95621.0,0.001]
[1733173635174,0.00231376,95622.0,95621.0,0.001]
[1733173635434,0.21416691,95623.0,95621.0,0.002]
[1733173635688,0.20516691,95623.0,95621.0,0.10384521]
[1733173635905,0.009,95622.0,95621.0,0.10484521]
[1733173636401,0.009,95622.0,95621.0,0.11538864]
[1733173636644,0.009,95622.0,95621.0,0.11438864]
[1733173636885,0.009,95622.0,95621.0,0.12237369]
[1733173636886,0.015,95622.0,95621.0,0.12237369]
[1733173637151,0.006,95622.0,95621.0,0.12137369]
[1733173637391,0.006,95622.0,95621.0,0.11083026]
[1733173637623,0.006,95622.0,95621.0,0.11183026]
[1733173637864,0.006,95622.0,95621.0,0.11083026]
[1733173638131,0.015,95622.0,95621.0,0.11183026]
[1733173638606,0.015,95622.0,95621.0,0.10484521]
[1733173639136,0.015,95622.0,95621.0,0.11538864]
[1733173639403,0.015,95622.0,95621.0,0.12237369]
[1733173639671,0.015,95622.0,95621.0,0.11538864]
[1733173639904,0.015,95622.0,95621.0,0.12237369]
[1733173641622,0.015,95622.0,95621.0,0.12323859]
[1733173651327,0.015,95622.0,95621.0,0.00984995]
[1733173651547,0.61960888,95622.0,95621.0,0.00984995]
[1733173651762,0.62473457,95622.0,95621.0,0.00984995]
[1733173651983,0.62473457,95622.0,95621.0,0.0028649]
[1733173652458,0.61960888,95622.0,95621.0,0.0028649]
[1733173652648,0.61960888,95622.0,95621.0,0.0018649]
[1733173652649,0.61360888,95622.0,95621.0,0.0018649]
[1733173652872,0.60560888,95622.0,95621.0,0.0058649]
[1733173653096,0.41832291,95622.0,95621.0,0.0068649]
[1733173653337,0.41732291,95622.0,95621.0,0.0018649]
[1733173654732,0.42632291,95622.0,95621.0,0.0018649]
[1733173657568,0.62260888,95622.0,95621.0,0.0018649]
[1733173659756,0.70595745,95622.0,95621.0,0.0018649]
[1733173659994,0.62260888,95622.0,95621.0,0.0018649]
[1733173660228,0.62788944,95622.0,95621.0,0.0018649]
[1733173662344,0.62784131,95622.0,95621.0,0.0018649]
[1733173669361,0.73395676,95622.0,95621.0,9e-07]
[1733173669575,0.73504733,95622.0,95621.0,9e-07]
[1733173669792,0.83787879,95622.0,95621.0,9e-07]
[1733173670480,0.209172,95615.0,95614.0,0.00058905]
[1733173670702,0.41060533,95615.0,95614.0,0.00058905]
[1733173670913,0.40829078,95615.0,95614.0,0.00058905]
[1733173671129,0.60457675,95615.0,95614.0,0.00058905]
[1733173671624,0.70707618,95615.0,95614.0,0.00058905]
[1733173671856,0.71339214,95615.0,95614.0,0.00158905]
[1733173673090,0.71439214,95615.0,95614.0,0.00158905]
[1733173673524,0.71339214,95615.0,95614.0,0.00058905]
[1733173673748,0.71239214,95615.0,95614.0,0.00058905]
[1733173673984,0.71339214,95615.0,95614.0,0.00058905]
[1733173674203,0.71439214,95615.0,95614.0,0.00058905]
[1733173674634,0.70839214,95615.0,95614.0,0.00058905]
[1733173675076,0.60589271,95615.0,95614.0,0.00058905]
[1733173675770,0.6058021,95615.0,95614.0,0.00058905]
[1733173678455,0.6058021,95615.0,95614.0,0.00145405]
[1733173679582,0.60907246,95615.0,95614.0,0.00145405]
[1733173679784,0.6058021,95615.0,95614.0,0.00145405]
[1733173680054,0.60907246,95615.0,95614.0,0.00145405]
[1733173680307,0.71176743,95615.0,95614.0,0.00145405]
[1733173682642,0.70645147,95615.0,95614.0,0.00145405]
[1733173684402,0.40747053,95615.0,95614.0,0.00145405]
[1733173684615,0.40136736,95615.0,95614.0,0.00145405]
[1733173684830,0.20508139,95615.0,95614.0,0.00145405]
[1733173685281,0.002,95615.0,95614.0,0.00145405]
[1733173685506,0.002,95615.0,95614.0,0.10429926]
[1733173685729,0.001,95615.0,95614.0,0.13582701]
[1733173685953,0.01,95615.0,95614.0,0.11020947]
[1733173686169,0.210172,95615.0,95614.0,0.11020947]
[1733173686374,0.209161,95620.0,95614.0,0.11020947]
[1733173686588,0.006,95615.0,95614.0,0.00145405]
[1733173686808,0.39540475,95615.0,95614.0,0.00145405]
[1733173687024,0.40440475,95615.0,95614.0,0.00145405]
[1733173687241,0.48595143,95615.0,95614.0,0.00145405]
[1733173687465,0.39540475,95615.0,95614.0,0.00145405]
[1733173687679,0.39967504,95615.0,95614.0,0.00745405]
[1733173688106,0.39540475,95615.0,95614.0,0.00145405]
[1733173688535,0.39967502,95615.0,95614.0,0.01045405]
[1733173688978,0.48154872,95615.0,95614.0,0.00145405]
[1733173689223,0.48254872,95615.0,95614.0,0.00145405]
[1733173689439,0.40067502,95615.0,95614.0,0.01045405]
[1733173689680,0.39740475,95615.0,95614.0,0.01045405]
[1733173689898,0.40067501,95615.0,95614.0,0.01045405]
[1733173690113,0.39740475,95615.0,95614.0,0.01045405]
[1733173690322,0.40067502,95615.0,95614.0,0.0095906]
[1733173692839,0.40067502,95615.0,95614.0,0.0075906]
[1733173695688,0.40080808,95615.0,95614.0,0.0075906]
[1733173696592,0.50365329,95615.0,95614.0,0.0075906]
[1733173697027,0.50888615,95615.0,95614.0,0.0075906]
[1733173698814,0.50888615,95615.0,95614.0,6e-07]
[1733173699035,0.50875309,95615.0,95614.0,6e-07]
[1733173699247,0.61171761,95615.0,95614.0,6e-07]
[1733173699463,0.61180962,95615.0,95614.0,6e-07]
[1733173699706,0.61835106,95615.0,95614.0,6e-07]
[1733173700380,0.61180962,95615.0,95614.0,6e-07]
[1733173701936,0.50897816,95615.0,95614.0,6e-07]
[1733173702159,0.40613295,95615.0,95614.0,6e-07]
[1733173702788,0.4008998,95615.0,95614.0,6e-07]
[1733173703003,0.4061328,95615.0,95614.0,6e-07]
[1733173703436,0.4061328,95615.0,95614.0,0.0008656]
[1733173703625,0.50875228,95615.0,95614.0,0.0008656]
[1733173703865,0.51048228,95615.0,95614.0,0.0008656]
[1733173704552,0.61332749,95615.0,95614.0,0.0008656]
[1733173704773,1.01909657,95615.0,95614.0,6e-07]
[1733173705003,1.00458275,95612.0,95611.0,7e-07]
[1733173705220,1.14836192,95612.0,95611.0,7e-07]
[1733173706374,1.15036192,95612.0,95611.0,7e-07]
[1733173706613,1.14936192,95612.0,95611.0,7e-07]
[1733173707033,1.15036192,95612.0,95611.0,7e-07]
[1733173708257,1.30036192,95612.0,95611.0,7e-07]
[1733173708495,1.30197104,95612.0,95611.0,7e-07]
[1733173708725,1.30036192,95612.0,95611.0,7e-07]
[1733173708949,1.3009784,95612.0,95611.0,7e-07]
[1733173709382,1.2999784,95612.0,95611.0,7e-07]
[1733173709599,1.29997993,95612.0,95611.0,7e-07]
[1733173710269,1.29897993,95612.0,95611.0,7e-07]
[1733173710493,1.30097993,95612.0,95611.0,7e-07]
[1733173712111,1.30092293,95612.0,95611.0,7e-07]
[1733173712332,1.29992293,95612.0,95611.0,7e-07]
[1733173712552,1.30092293,95612.0,95611.0,7e-07]
[1733173712992,1.29892293,95612.0,95611.0,7e-07]
[1733173713219,1.30092293,95612.0,95611.0,7e-07]
[1733173713449,1.29992293,95612.0,95611.0,7e-07]
[1733173713736,1.09892293,95612.0,95611.0,7e-07]
[1733173713965,1.30092293,95612.0,95611.0,7e-07]
[1733173714208,1.29492293,95612.0,95611.0,7e-07]
[1733173714432,1.29392293,95612.0,95611.0,7e-07]
[1733173714931,1.29492293,95612.0,95611.0,7e-07]
[1733173715371,1.29392293,95612.0,95611.0,7e-07]
[1733173716570,1.29492293,95612.0,95611.0,7e-07]
[1733173717029,1.29392293,95612.0,95611.0,7e-07]
[1733173717253,1.29492293,95612.0,95611.0,7e-07]
[1733173718844,1.29516424,95612.0,95611.0,7e-07]
[1733173719509,1.062734,95612.0,95611.0,7e-07]
[1733173720231,0.862734,95612.0,95611.0,7e-07]
[1733173720470,1.062734,95612.0,95611.0,7e-07]
[1733173723094,1.06273335,95612.0,95611.0,7e-07]
[1733173723587,1.05673335,95612.0,95611.0,7e-07]
[1733173723823,1.15956481,95612.0,95611.0,7e-07]
[1733173724051,1.05673335,95612.0,95611.0,7e-07]
[1733173724520,1.25673335,95612.0,95611.0,7e-07]
[1733173725218,0.40548997,95574.0,95573.0,0.0008643]
[1733173726618,0.41450346,95574.0,95573.0,0.0008643]
[1733173726881,0.42350346,95574.0,95573.0,0.0008643]
[1733173727603,0.42350346,95574.0,95573.0,0.00075406]
[1733173729572,0.41450346,95574.0,95573.0,0.00075406]
[1733173729806,0.40550346,95574.0,95573.0,0.00075406]
[1733173730050,0.42350346,95574.0,95573.0,0.00075406]
[1733173730316,0.41450346,95574.0,95573.0,0.00075406]
[1733173730555,0.40550346,95574.0,95573.0,0.00075406]
[1733173730762,0.51733492,95574.0,95573.0,0.00075406]
[1733173730982,0.60762224,95574.0,95573.0,0.00075406]
[1733173731472,0.59862224,95574.0,95573.0,0.00075406]
[1733173732309,0.60762224,95574.0,95573.0,0.00075406]
[1733173732522,0.59862224,95574.0,95573.0,0.00075406]
[1733173732734,0.60862224,95574.0,95573.0,0.00075406]
[1733173733184,0.60762224,95574.0,95573.0,0.00075406]
[1733173734104,0.61662224,95574.0,95573.0,0.00075406]
[1733173735431,0.22727449,95574.0,95573.0,0.00075406]
[1733173735867,0.0180588,95574.0,95573.0,0.00075406]
[1733173736083,0.0180588,95574.0,95573.0,0.10359927]
[1733173736306,0.0180588,95574.0,95573.0,0.14586626]
[1733173737401,0.0090588,95574.0,95573.0,0.14586626]
[1733173738562,0.0160588,95574.0,95573.0,0.10359927]
[1733173738776,0.40530904,95574.0,95573.0,0.00075406]
[1733173739021,0.41269992,95574.0,95573.0,0.00075406]
[1733173739239,0.41603824,95574.0,95573.0,0.00075406]
[1733173739691,0.51780832,95574.0,95573.0,0.00075406]
[1733173740141,0.53099396,95574.0,95573.0,0.00075406]
[1733173740565,0.51299396,95574.0,95573.0,0.00075406]
[1733173741217,0.51299396,95574.0,95573.0,0.00175406]
[1733173741218,0.51399396,95574.0,95573.0,0.00175406]
[1733173741702,0.51299396,95574.0,95573.0,0.00075406]
[1733173741920,0.52199396,95574.0,95573.0,0.00075406]
[1733173742138,0.51138484,95574.0,95573.0,0.00075406]
[1733173742359,0.51238484,95574.0,95573.0,0.00175406]
[1733173743249,0.51238484,95574.0,95573.0,0.00075406]
[1733173743476,0.51338484,95574.0,95573.0,0.00175406]
[1733173743699,0.51238484,95574.0,95573.0,0.00175406]
[1733173744140,0.51338484,95574.0,95573.0,0.00175406]
[1733173744577,0.51385589,95574.0,95573.0,0.00175406]
[1733173744800,0.51285589,95574.0,95573.0,0.00175406]
[1733173746634,0.40775279,95574.0,95573.0,0.00143406]
[1733173746846,0.41102456,95574.0,95573.0,0.00143406]
[1733173747490,0.4110246,95574.0,95573.0,0.00143406]
[1733173749909,0.51386981,95574.0,95573.0,0.00143406]
[1733173750136,0.62354568,95574.0,95573.0,0.00143406]
[1733173750590,0.62254568,95574.0,95573.0,0.00143406]